fUST/lending_fUST_20240101
["ID","MTS","AMOUNT","RATE_DAILY","PERIOD"]
[309741291,1704047436861,-200.46620072,0.0003988,5]
[309741292,1704047436871,-678.16666222,0.00039958,4]
[309741293,1704047436880,-221.0,0.0003999,60]
[309741294,1704047436889,-4028.0480772,0.0003999,4]
[309741295,1704047436898,-211.81513535,0.00039998,4]
[309741296,1704047436907,-150.0,0.00039999,2]
[309741297,1704047436917,-186.2851782,0.0004,4]
[309741298,1704047436926,-10943.23799135,0.0004,120]
[309741299,1704047436935,-163.05594925,0.0004,2]
[309741300,1704047436944,-1277.15040759,0.0004,4]
[309741301,1704047436953,-1500.0,0.0004,10]
[309741302,1704047436962,-150.0,0.00040048,2]
[309741303,1704047436972,-150.8642222,0.00040389,2]
[309741304,1704047436981,-238.73359683,0.0004048,2]
[309741305,1704047436991,-151.0,0.00040535,21]
[309741306,1704047437000,-1000.0,0.00040848,10]
[309741307,1704047437009,-3629.02993547,0.00041,10]
[309741308,1704047437019,-200.0,0.00041,12]
[309741309,1704047437028,-306.0,0.00041041,2]
[309741310,1704047437038,-301.7284444,0.00041068,4]
[309741311,1704047437047,-250.0,0.00041095,10]
[309741312,1704047437056,-2637.629608,0.000411,3]
[309741313,1704047437065,-153.0,0.00041452,2]
[309741314,1704047437075,-153.0,0.00041452,2]
[309741315,1704047437084,-153.0,0.00041452,2]
[309741316,1704047437093,-153.0,0.00041452,2]
[309741317,1704047437103,-637.064068,0.00041553,120]
[309741318,1704047437112,-10356.20021714,0.00041577,4]
[309741319,1704047437122,-200.0,0.00041626,30]
[309741320,1704047437131,-200.0,0.00041626,30]
[309741321,1704047437140,-357.0,0.00041626,30]
[309741322,1704047437150,-153.0,0.00041644,2]
[309741323,1704047437159,-5000.0,0.00041644,15]
[309741324,1704047437169,-603.4568888,0.00041758,7]
[309741325,1704047437178,-915.74261707,0.00041996,4]
[309741326,1704047437187,-229.8031889,0.00041996,4]
[309741327,1704047437197,-488.57173973,0.00041997,4]
[309741328,1704047437206,-249.86524404,0.00041997,4]
[309741329,1704047437215,-641.2979322,0.00041997,4]
[309741330,1704047437225,-850.93912098,0.00041997,4]
[309741331,1704047437234,-333.15042011,0.00041997,4]
[309741332,1704047437243,-3000.0,0.00041997,2]
[309741333,1704047437253,-309.6903097,0.00041997,4]
[309741334,1704047437262,-155.37026515,0.00041997,7]
[309741335,1704047437271,-245.22345565,0.00041997,4]
[309741336,1704047437281,-154.99349163,0.00041997,4]
[309741337,1704047437290,-155.09350475,0.00041997,4]
[309741338,1704047437299,-872.57979298,0.00041997,4]
[309741339,1704047437332,-612.20594371,0.00041997,4]
[309741340,1704047437342,-3032.82065991,0.00041998,4]
[309741341,1704047437351,-318.4,0.00041998,7]
[309741342,1704047437361,-318.4,0.00041998,7]
[309741343,1704047437370,-318.4,0.00041998,7]
[309741344,1704047437379,-445390.48475985,0.00041999,7]
[309741393,1704047438219,-183.11118741,0.00034101,4]
[309741395,1704047438230,-342.55,0.0003589,3]
[309741397,1704047438239,-2205.56014574,0.00041999,7]
[309741898,1704047446015,-25084.5190839,0.00041999,7]
[309741899,1704047446110,-38559.35517563,0.00041999,7]
[309741944,1704048632349,-154.8915759,0.00025539,4]
[309741946,1704048632359,-1763.30430062,0.00025539,2]
[309741948,1704048632371,-414.16032295,0.00025539,2]
[309741953,1704048632409,-625.35225718,0.00025539,2]
[309741955,1704048632419,-154.8915759,0.0002554,2]
[309741957,1704048632428,-2719.88802692,0.0002554,2]
[309742152,1704048645274,-154.8915759,0.00025539,2]
[309742153,1704048645284,-899.40143974,0.00025539,2]
[309742154,1704048645293,-745.73617208,0.00025539,2]
[309742197,1704048855311,154.84515385,0.000176,2]
[309742244,1704049832311,-4861.35011452,0.00023333,2]
[309742246,1704049832321,-899.40143974,0.00023334,2]
[309742248,1704049832330,-154.8915759,0.00023334,2]
[309742250,1704049832339,-7539.00412724,0.00023335,2]
[309742252,1704049832349,-154.8915759,0.00023335,4]
[309742254,1704049832358,-161.168543,0.00023338,2]
[309742257,1704049832367,-859.5074307,0.00023594,2]
[309742258,1704049832376,-174.658866,0.00024249,2]
[309742261,1704049832385,-169.9529526,0.00024468,2]
[309742264,1704049832394,-175.951042,0.00024528,2]
[309742267,1704049832403,-161.168543,0.00024928,2]
[309742270,1704049832413,-299.48910497,0.00025425,2]
[309742273,1704049832422,-3000.0,0.00025535,2]
[309742276,1704049832431,-27745.15818656,0.00025536,2]
[309742279,1704049832443,-778.55773794,0.00025536,2]
[309742282,1704049832455,-1584.13436656,0.00025536,2]
[309742319,1704049838489,-260.29428997,0.00025536,2]
[309742332,1704049838599,-21511.42870707,0.00025536,2]
[309742393,1704049846416,-154.8915759,0.00025535,4]
[309742394,1704049846427,-154.8915759,0.00025535,2]
[309742395,1704049846438,-4861.35011452,0.00025535,2]
[309742396,1704049846449,-7539.00412724,0.00025535,2]
[309742397,1704049846458,-2341.82552504,0.00025536,2]
[309742459,1704051038746,-4861.35011452,0.00025368,2]
[309742460,1704051038755,-33.92991069,0.00025369,2]
[309742473,1704051042107,-865.47152905,0.00025369,2]
[309742474,1704051042117,-154.8915759,0.00025369,4]
[309742475,1704051042127,-154.8915759,0.0002537,2]
[309742476,1704051042136,-161.168543,0.00025384,2]
[309742477,1704051042146,-558.70266717,0.00025536,2]
[309742478,1704051042157,-842.154248,0.00025538,2]
[309742499,1704051043556,-3066.78725823,0.00025538,2]
[309742565,1704052231688,-154.8915759,0.0002398,4]
[309742567,1704052231698,-166.6666679,0.00023981,2]
[309742569,1704052231707,-899.40143974,0.00024392,2]
[309742571,1704052231717,-215.68072,0.00024393,2]
[309742573,1704052231728,-1248.16321363,0.00024817,2]
[309742575,1704052231740,-472.90899334,0.00024817,2]
[309742577,1704052231751,-200.0,0.00024878,2]
[309742579,1704052231762,-1798.52904288,0.00025,2]
[309742581,1704052231774,-680.66568263,0.00025,2]
[309742583,1704052231784,-154.82968734,0.00025435,2]
[309742585,1704052231796,-253.82104739,0.00025536,7]
[309742613,1704052243486,-4861.35011452,0.00024391,2]
[309742614,1704052243498,-1712.33934369,0.00025536,7]
[309742615,1704052243509,-10295.41285075,0.00025538,2]
[309742616,1704052243522,-1000.0,0.00025538,30]
[309742617,1704052243534,-2998.02252845,0.00025538,2]
[309742618,1704052243545,-761.66265573,0.00025538,2]
[309742619,1704052243556,-297.35231404,0.00025586,2]
[309742620,1704052243570,-781.50075545,0.00026,2]
[309742621,1704052243583,-15740.1180277,0.00026066,2]
[309742622,1704052243594,-175.951042,0.00026066,2]
[309742623,1704052243607,-200.0,0.00027304,15]
[309742624,1704052243618,-194.2520832,0.000299,2]
[309742625,1704052243629,-10000.0,0.0003,3]
[309742626,1704052243642,-151.0,0.0003,2]
[309742627,1704052243655,-268.36286622,0.00031498,4]
[309742628,1704052243671,-4252.27832427,0.00031498,4]
[309742629,1704052243685,-194.2520832,0.00032398,2]
[309742630,1704052243698,-984.02539987,0.00032931,2]
[309742631,1704052243711,-151.0,0.00032932,2]
[309742632,1704052243724,-184.46590007,0.00032933,2]
[309742633,1704052243737,-189.57820247,0.00032933,2]
[309742634,1704052243750,-283.75293291,0.00032943,2]
[309742635,1704052243761,-2673.30441181,0.00033,4]
[309742636,1704052243772,-194.2520832,0.00034895,2]
[309742637,1704052243782,-1000.0,0.00034959,7]
[309742638,1704052243793,-665.95736759,0.0003496,5]
[309742639,1704052243805,-1573.13,0.0003499,3]
[309742640,1704052243817,-1478.86,0.0003499,3]
[309742641,1704052243829,-1232.39,0.0003499,3]
[309742642,1704052243841,-151.0,0.0003499,2]
[309742643,1704052243853,-179.85,0.00034999,2]
[309742644,1704052243865,-164.4,0.00034999,2]
[309742645,1704052243875,-151.0,0.00035,2]
[309742646,1704052243886,-112799.97606681,0.00035,2]
[309742647,1704052243899,-318.532034,0.00035616,120]
[309742648,1704052243909,-150.87929656,0.00036658,7]
[309742649,1704052243920,-194.2520832,0.00037393,2]
[309742650,1704052243930,-150.87929656,0.00037407,4]
[309742651,1704052243941,-244.57169986,0.00037798,4]
[309742652,1704052243953,-150.87929656,0.0003817,2]
[309742653,1704052243964,-543.92326863,0.00038459,2]
[309742654,1704052243975,-200.0,0.000386,4]
[309742655,1704052243985,-12651.76209629,0.00039013,2]
[309742656,1704052243995,-175.951042,0.000391,2]
[309742657,1704052244005,-5000.0,0.00039113,7]
[309742658,1704052244016,-1977.88811244,0.00039113,2]
[309742659,1704052244026,-3782.99256929,0.00039113,2]
[309742660,1704052244048,-1168.91383792,0.00039113,2]
[309742661,1704052244065,-4777.82643659,0.00039113,2]
[309742662,1704052244080,-5000.0,0.00039113,7]
[309742663,1704052244097,-180.73486369,0.00039113,2]
[309742664,1704052244110,-584.72,0.000393,60]
[309742665,1704052244123,-153.0,0.00039644,2]
[309742666,1704052244136,-153.0,0.00039644,2]
[309742667,1704052244150,-11930.40053202,0.00039899,5]
[309742668,1704052244162,-1453.38274835,0.0004,10]
[309742669,1704052244174,-1109.81138595,0.00040121,30]
[309742670,1704052244188,-723.77453902,0.00040121,30]
[309742671,1704052244200,-153.0,0.00040466,2]
[309742672,1704052244213,-264.67649495,0.00041,10]
[309742673,1704052244225,-250.0,0.00041095,10]
[309742674,1704052244236,-318.532034,0.00041553,120]
[309742675,1704052244247,-413.08754391,0.00041578,2]
[309742676,1704052244259,-752.0,0.000418,2]
[309742677,1704052244380,-200.0,0.000419,13]
[309742678,1704052244394,-678.6369201,0.00041956,4]
[309742679,1704052244403,-499.0,0.0004197,7]
[309742680,1704052244412,-155.0,0.0004197,60]
[309742681,1704052244422,-499.0,0.0004198,7]
[309742682,1704052244432,-155.0,0.0004198,60]
[309742683,1704052244442,-150.0,0.0004199,7]
[309742684,1704052244451,-499.0,0.0004199,7]
[309742685,1704052244460,-155.0,0.0004199,60]
[309742686,1704052244470,-285.08553241,0.00041997,4]
[309742687,1704052244479,-278.45102428,0.00041997,4]
[309742688,1704052244489,-276.74901979,0.00041998,4]
[309742689,1704052244498,-1918.19587652,0.00041998,2]
[309742690,1704052244506,-2531.62443951,0.00041998,7]
[309742691,1704052244516,-289.28649423,0.00041998,4]
[309742692,1704052244525,-204.12104444,0.00041998,4]
[309742693,1704052244534,-6068.18576775,0.00041998,4]
[309742694,1704052244544,-2812.09654311,0.00041998,4]
[309742695,1704052244553,-915.74261707,0.00041998,4]
[309742696,1704052244562,-1277.15040759,0.00041998,4]
[309742697,1704052244571,-4068.8687713,0.00041998,7]
[309742698,1704052244581,-612.33111359,0.00041998,4]
[309742699,1704052244590,-4698.69617845,0.00041998,4]
[309742700,1704052244598,-259.59819694,0.00041998,7]
[309742701,1704052244608,-500.0,0.00041998,4]
[309742702,1704052244617,-650.22740386,0.00041998,4]
[309742703,1704052244626,-193.23111419,0.00041998,4]
[309742704,1704052244634,-500.0,0.00041998,4]
[309742705,1704052244644,-500.0,0.00041998,4]
[309742706,1704052244653,-888.0,0.00041999,2]
[309742707,1704052244662,-3606.34672026,0.00041999,4]
[309742708,1704052244673,-1503.21872903,0.00041999,15]
[309742709,1704052244683,-270.21375495,0.00041999,15]
[309742710,1704052244691,-247.63767814,0.00041999,15]
[309742711,1704052244700,-341.2733169,0.00041999,15]
[309742712,1704052244709,-445.72193149,0.00041999,14]
[309742713,1704052244718,-45712.72042,0.00041999,7]
[309742714,1704052244730,-745.7,0.00042,120]
[309742715,1704052244740,-1373.20587729,0.00042,30]
[309742716,1704052244749,-50000.0,0.00042,40]
[309742717,1704052244758,-15153.84,0.00042,20]
[309742718,1704052244767,-2323.12803456,0.0004204,4]
[309742719,1704052244776,-166.339883,0.00042091,21]
[309742720,1704052244786,-1614.92900603,0.00042255,60]
[309742721,1704052244796,-10606.90030262,0.00042294,2]
[309742722,1704052244807,-206.55412993,0.000424,15]
[309742723,1704052244818,-847.6663339,0.000424,15]
[309742724,1704052244827,-482.93660972,0.000424,10]
[309742725,1704052244837,-150.87929656,0.00042411,2]
[309742726,1704052244847,-250.29064748,0.00042411,2]
[309742727,1704052244856,-500.0,0.00042465,10]
[309742728,1704052244866,-550.0,0.00042465,3]
[309742729,1704052244875,-153.0,0.00042466,2]
[309742730,1704052244886,-153.0,0.00042466,2]
[309742731,1704052244895,-2324.78171187,0.00042518,10]
[309742732,1704052244905,-4505.28778508,0.00042702,10]
[309742733,1704052244915,-550.0,0.00042739,3]
[309742734,1704052244926,-252.0931717,0.000428,5]
[309742735,1704052244936,-561.54150479,0.00042897,4]
[309742736,1704052244946,-154.84515485,0.00042897,2]
[309742737,1704052244955,-2080.8206913,0.00042898,5]
[309742738,1704052244964,-300.68456429,0.00042898,4]
[309742739,1704052244974,-1333.2903766,0.00042898,4]
[309742740,1704052244983,-4987.23817737,0.000429,5]
[309742741,1704052244992,-2079.485564,0.00042904,30]
[309742742,1704052245002,-2403.51524951,0.00042998,4]
[309742743,1704052245011,-314.0969995,0.00042998,4]
[309742744,1704052245021,-160.59330965,0.00042998,4]
[309742745,1704052245030,-2450.21714445,0.00042998,30]
[309742746,1704052245039,-725.42289692,0.00042998,4]
[309742747,1704052245048,-264.14663015,0.00042998,4]
[309742748,1704052245057,-424.46362214,0.00043,120]
[309742749,1704052245066,-61620.0,0.00043,2]
[309742750,1704052245076,-1000.0,0.00043,43]
[309742751,1704052245085,-550.0,0.00043013,3]
[309742752,1704052245095,-301.75859313,0.00043124,4]
[309742753,1704052245104,-550.0,0.00043287,3]
[309742754,1704052245113,-2079.485564,0.00043427,30]
[309742755,1704052245122,-550.0,0.00043561,3]
[309742756,1704052245131,-2381.82748,0.00043585,3]
[309742757,1704052245140,-2000.0,0.00043638,30]
[309742758,1704052245149,-2000.0,0.00043638,30]
[309742759,1704052245159,-301.51525474,0.00043735,14]
[309742760,1704052245168,-301.51525474,0.00043735,14]
[309742761,1704052245177,-301.51525474,0.00043735,14]
[309742762,1704052245186,-301.51525474,0.00043735,14]
[309742763,1704052245195,-301.51525474,0.00043735,14]
[309742764,1704052245204,-301.51525474,0.00043735,14]
[309742765,1704052245213,-301.51525474,0.00043735,14]
[309742766,1704052245222,-301.51525474,0.00043735,14]
[309742767,1704052245232,-301.51525474,0.00043735,14]
[309742768,1704052245241,-301.51525474,0.00043735,14]
[309742769,1704052245251,-301.51525474,0.00043735,14]
[309742770,1704052245260,-301.51525474,0.00043735,14]
[309742771,1704052245269,-301.51525474,0.00043735,14]
[309742772,1704052245279,-301.51525474,0.00043735,14]
[309742773,1704052245289,-301.51525474,0.00043735,14]
[309742774,1704052245298,-301.51525474,0.00043735,14]
[309742775,1704052245308,-301.51525474,0.00043735,14]
[309742776,1704052245317,-301.51525474,0.00043735,14]
[309742777,1704052245326,-301.51525474,0.00043735,14]
[309742778,1704052245335,-301.51,0.00043735,14]
[309742779,1704052245345,-1206.06101897,0.00043735,14]
[309742781,1704052245354,-1206.06101897,0.00043735,14]
[309742783,1704052245364,-1206.06101897,0.00043735,14]
[309742784,1704052245373,-1206.06101897,0.00043735,14]
[309742786,1704052245382,-1206.06101897,0.00043735,14]
[309742788,1704052245392,-1206.06101897,0.00043735,14]
[309742789,1704052245402,-1206.06101897,0.00043735,14]
[309742791,1704052245411,-1206.06101897,0.00043735,14]
[309742793,1704052245422,-1206.06101897,0.00043735,14]
[309742795,1704052245432,-1206.06101897,0.00043735,14]
[309742796,1704052245441,-1206.06101897,0.00043735,14]
[309742798,1704052245452,-1206.06101897,0.00043735,14]
[309742799,1704052245462,-1206.06101897,0.00043735,14]
[309742800,1704052245471,-1206.06101897,0.00043735,14]
[309742801,1704052245480,-1206.06101897,0.00043735,14]
[309742802,1704052245489,-1206.06101897,0.00043735,14]
[309742803,1704052245499,-1206.06101897,0.00043735,14]
[309742804,1704052245509,-1206.06101897,0.00043735,14]
[309742805,1704052245518,-1206.06101897,0.00043735,14]
[309742806,1704052245527,-1206.06,0.00043735,14]
[309742807,1704052245537,-179.3174787,0.00043735,14]
[309742808,1704052245546,-179.31,0.00043735,14]
[309742809,1704052245555,-196.42611676,0.00043735,14]
[309742810,1704052245564,-196.42611676,0.00043735,14]
[309742811,1704052245574,-196.42,0.00043735,14]
[309742812,1704052245583,-2000.0,0.00043754,2]
[309742813,1704052245593,-2000.0,0.00043754,2]
[309742814,1704052245603,-398.77168381,0.0004378,4]
[309742815,1704052245613,-158.97708423,0.000438,2]
[309742816,1704052245623,-2008.65,0.000438,16]
[309742817,1704052245633,-160.0,0.00043801,3]
[309742818,1704052245643,-499.0,0.00043805,7]
[309742819,1704052245652,-155.0,0.00043805,60]
[309742820,1704052245662,-499.0,0.00043815,7]
[309742821,1704052245675,-499.0,0.00043815,7]
[309742822,1704052245684,-155.0,0.00043815,60]
[309742823,1704052245693,-155.0,0.00043815,60]
[309742824,1704052245703,-499.0,0.00043825,7]
[309742825,1704052245714,-499.0,0.00043825,7]
[309742826,1704052245724,-155.0,0.00043825,60]
[309742827,1704052245734,-155.0,0.00043825,60]
[309742828,1704052245746,-179.85,0.00043834,7]
[309742829,1704052245756,-179.85,0.00043834,7]
[309742830,1704052245766,-179.85,0.00043834,7]
[309742831,1704052245775,-179.85,0.00043834,7]
[309742832,1704052245784,-500.0,0.00043835,21]
[309742833,1704052245793,-500.0,0.00043835,21]
[309742834,1704052245802,-222.15877346,0.00043835,21]
[309742835,1704052245812,-500.0,0.00043835,21]
[309742836,1704052245822,-500.0,0.00043835,21]
[309742837,1704052245832,-505.14168073,0.00043835,21]
[309742838,1704052245845,-500.0,0.00043835,21]
[309742839,1704052245856,-500.0,0.00043835,21]
[309742840,1704052245866,-500.0,0.00043835,7]
[309742841,1704052245876,-500.0,0.00043835,7]
[309742842,1704052245885,-500.0,0.00043835,21]
[309742843,1704052245894,-500.0,0.00043835,21]
[309742844,1704052245903,-310.40221156,0.00043835,21]
[309742845,1704052245912,-500.0,0.00043835,21]
[309742846,1704052245920,-500.0,0.00043835,21]
[309742847,1704052245929,-500.0,0.00043835,21]
[309742848,1704052245939,-500.0,0.00043835,21]
[309742849,1704052245948,-500.0,0.00043835,21]
[309742850,1704052245959,-500.0,0.00043835,21]
[309742851,1704052245969,-500.0,0.00043835,21]
[309742852,1704052245980,-500.0,0.00043835,21]
[309742853,1704052245990,-500.0,0.00043835,21]
[309742854,1704052246001,-500.0,0.00043835,21]
[309742855,1704052246011,-486.55172117,0.00043835,21]
[309742856,1704052246023,-775.41,0.00043835,21]
[309742857,1704052246034,-775.41,0.00043835,21]
[309742858,1704052246044,-775.41,0.00043835,21]
[309742859,1704052246054,-775.41,0.00043835,21]
[309742860,1704052246065,-775.41,0.00043835,21]
[309742861,1704052246075,-775.41,0.00043835,21]
[309742862,1704052246084,-775.41,0.00043835,21]
[309742863,1704052246095,-775.41,0.00043835,21]
[309742864,1704052246105,-775.41,0.00043835,21]
[309742865,1704052246116,-775.41,0.00043835,21]
[309742866,1704052246126,-775.41,0.00043835,21]
[309742867,1704052246137,-775.41,0.00043835,21]
[309742868,1704052246147,-775.41,0.00043835,21]
[309742870,1704052246158,-775.41,0.00043835,21]
[309742873,1704052246168,-775.41,0.00043835,21]
[309742874,1704052246178,-775.41,0.00043835,21]
[309742875,1704052246189,-775.41,0.00043835,21]
[309742877,1704052246263,-775.41,0.00043835,21]
[309742878,1704052246274,-775.41,0.00043835,21]
[309742879,1704052246283,-775.41,0.00043835,21]
[309742880,1704052246293,-775.41,0.00043835,21]
[309742881,1704052246303,-775.41,0.00043835,21]
[309742882,1704052246313,-775.41,0.00043835,21]
[309742883,1704052246323,-775.43062209,0.00043835,21]
[309742884,1704052246333,-500.0,0.00043835,21]
[309742885,1704052246343,-515.96175116,0.00043835,21]
[309742886,1704052246352,-864.31,0.00043835,21]
[309742887,1704052246362,-864.31,0.00043835,21]
[309742888,1704052246371,-864.31,0.00043835,21]
[309742889,1704052246382,-864.31,0.00043835,21]
[309742890,1704052246392,-864.31,0.00043835,21]
[309742891,1704052246401,-864.31,0.00043835,21]
[309742892,1704052246411,-864.31,0.00043835,21]
[309742893,1704052246423,-864.31,0.00043835,21]
[309742894,1704052246434,-864.31,0.00043835,21]
[309742895,1704052246444,-864.31,0.00043835,21]
[309742896,1704052246454,-864.31,0.00043835,21]
[309742897,1704052246464,-864.31,0.00043835,21]
[309742898,1704052246475,-864.31,0.00043835,21]
[309742899,1704052246486,-864.31,0.00043835,21]
[309742900,1704052246497,-864.31,0.00043835,21]
[309742901,1704052246507,-864.31,0.00043835,21]
[309742902,1704052246517,-864.31,0.00043835,21]
[309742903,1704052246527,-864.31,0.00043835,21]
[309742904,1704052246537,-864.31,0.00043835,21]
[309742905,1704052246546,-864.31,0.00043835,21]
[309742906,1704052246556,-864.31,0.00043835,21]
[309742907,1704052246566,-864.31,0.00043835,21]
[309742908,1704052246577,-864.31,0.00043835,21]
[309742909,1704052246587,-864.48267519,0.00043835,21]
[309742910,1704052246596,-485.91140869,0.00043835,21]
[309742911,1704052246606,-203.74661422,0.00043835,21]
[309742912,1704052246616,-504.82668657,0.00043835,21]
[309742913,1704052246626,-500.0,0.00043835,21]
[309742914,1704052246637,-517.35197718,0.00043835,21]
[309742915,1704052246647,-500.0,0.00043835,21]
[309742916,1704052246657,-500.0,0.00043835,21]
[309742917,1704052246666,-500.0,0.00043835,21]
[309742918,1704052246677,-500.0,0.00043835,21]
[309742919,1704052246688,-500.0,0.00043835,21]
[309742920,1704052246698,-500.0,0.00043835,21]
[309742921,1704052246709,-500.0,0.00043835,21]
[309742922,1704052246719,-500.0,0.00043835,21]
[309742923,1704052246729,-500.0,0.00043835,21]
[309742924,1704052246740,-500.0,0.00043835,21]
[309742925,1704052246751,-554.93748747,0.00043835,21]
[309742926,1704052246762,-500.0,0.00043835,21]
[309742927,1704052246772,-510.35211402,0.00043835,21]
[309742928,1704052246782,-171.38641599,0.00043835,21]
[309742929,1704052246792,-502.21984779,0.00043835,21]
[309742930,1704052246803,-500.0,0.00043835,21]
[309742931,1704052246813,-604.4846577,0.00043835,21]
[309742932,1704052246823,-509.24746822,0.00043835,21]
[309742933,1704052246834,-500.0,0.00043835,21]
[309742934,1704052246844,-500.0,0.00043835,21]
[309742935,1704052246855,-500.0,0.00043835,21]
[309742936,1704052246865,-500.0,0.00043835,21]
[309742937,1704052246876,-500.0,0.00043835,21]
[309742938,1704052246887,-500.0,0.00043835,21]
[309742939,1704052246897,-500.0,0.00043835,21]
[309742940,1704052246908,-500.0,0.00043835,21]
[309742941,1704052246918,-500.0,0.00043835,21]
[309742942,1704052246929,-500.0,0.00043835,21]
[309742943,1704052246939,-500.0,0.00043835,21]
[309742944,1704052246949,-500.0,0.00043835,21]
[309742945,1704052246960,-598.63335222,0.00043835,21]
[309742946,1704052246970,-500.0,0.00043835,21]
[309742947,1704052246980,-500.0,0.00043835,21]
[309742948,1704052246989,-500.0,0.00043835,21]
[309742949,1704052247000,-593.66163404,0.00043835,21]
[309742950,1704052247010,-172.29402006,0.00043835,21]
[309742951,1704052247020,-500.0,0.00043835,21]
[309742952,1704052247030,-500.0,0.00043835,21]
[309742953,1704052247040,-500.0,0.00043835,21]
[309742954,1704052247049,-500.0,0.00043835,21]
[309742955,1704052247059,-530.61652209,0.00043835,21]
[309742956,1704052247070,-500.0,0.00043835,21]
[309742957,1704052247080,-506.05160723,0.00043835,21]
[309742958,1704052247091,-528.77275356,0.00043835,21]
[309742959,1704052247102,-536.36288541,0.00043835,21]
[309742960,1704052247113,-500.0,0.00043835,21]
[309742961,1704052247123,-500.0,0.00043835,21]
[309742962,1704052247135,-500.0,0.00043835,21]
[309742963,1704052247144,-500.0,0.00043835,21]
[309742964,1704052247154,-500.0,0.00043835,21]
[309742965,1704052247164,-500.0,0.00043835,21]
[309742966,1704052247173,-500.0,0.00043835,21]
[309742967,1704052247183,-500.0,0.00043835,21]
[309742968,1704052247192,-500.0,0.00043835,21]
[309742969,1704052247201,-602.43584069,0.00043835,21]
[309742970,1704052247211,-500.0,0.00043835,21]
[309742971,1704052247221,-207.94342081,0.00043835,21]
[309742972,1704052247231,-500.0,0.00043835,21]
[309742973,1704052247242,-153.80663703,0.00043835,21]
[309742974,1704052247251,-545.17148794,0.00043835,21]
[309742975,1704052247261,-500.0,0.00043835,21]
[309742976,1704052247270,-500.0,0.00043835,21]
[309742977,1704052247280,-500.0,0.00043835,21]
[309742978,1704052247290,-500.0,0.00043835,21]
[309742979,1704052247299,-500.0,0.00043835,21]
[309742980,1704052247309,-500.0,0.00043835,21]
[309742981,1704052247319,-548.15517107,0.00043835,21]
[309742982,1704052247330,-500.0,0.00043835,21]
[309742983,1704052247340,-492.8611087,0.00043835,21]
[309742984,1704052247349,-500.0,0.00043835,21]
[309742985,1704052247358,-184.26405209,0.00043835,21]
[309742986,1704052247367,-361.54509701,0.00043835,7]
[309742987,1704052247376,-500.0,0.00043835,21]
[309742988,1704052247386,-500.0,0.00043835,21]
[309742989,1704052247396,-500.0,0.00043835,21]
[309742990,1704052247405,-569.68718285,0.00043835,21]
[309742991,1704052247415,-500.0,0.00043835,21]
[309742992,1704052247424,-522.14367945,0.00043835,21]
[309742993,1704052247434,-645.63944479,0.00043835,21]
[309742994,1704052247443,-500.0,0.00043835,21]
[309742995,1704052247453,-152.72477613,0.00043835,21]
[309742996,1704052247462,-601.18920814,0.00043835,21]
[309742997,1704052247471,-508.05189927,0.00043835,21]
[309742998,1704052247481,-500.0,0.00043835,21]
[309742999,1704052247490,-500.0,0.00043835,21]
[309743000,1704052247499,-504.50112367,0.00043835,21]
[309743001,1704052247508,-219.76445217,0.00043835,21]
[309743002,1704052247517,-503.39473393,0.00043835,21]
[309743003,1704052247526,-280.0,0.00043835,21]
[309743004,1704052247535,-500.0,0.00043835,2]
[309743005,1704052247544,-512.1295237,0.00043835,2]
[309743006,1704052247553,-502.04181666,0.00043835,2]
[309743007,1704052247562,-509.68696452,0.00043835,21]
[309743008,1704052247572,-502.48265496,0.00043835,21]
[309743009,1704052247584,-500.0,0.00043835,2]
[309743010,1704052247593,-511.03920317,0.00043835,21]
[309743011,1704052247602,-500.0,0.00043835,2]
[309743012,1704052247611,-500.0,0.00043835,2]